bitfinex/quotes_ETHUSD_20250517
["timestamp","ask_amount","ask_price","bid_price","bid_amount"]
[1747464436093,4.77245806,2492.3,2492.2,17.32]
[1747464436399,4.77245806,2492.3,2492.2,24.863]
[1747464436617,4.01235806,2492.3,2492.2,17.32]
[1747464436759,4.01235806,2492.3,2492.2,24.863]
[1747464436961,1.41877314,2492.4,2492.2,27.3493]
[1747464437278,4.77204786,2492.6,2492.2,27.3493]
[1747464437279,8.95877314,2492.6,2492.2,27.3493]
[1747464437658,1.41877314,2492.4,2492.2,27.3493]
[1747464438282,4.01235806,2492.3,2492.2,24.863]
[1747464438455,5.43103503,2492.4,2492.2,24.863]
[1747464438956,4.01161576,2492.8,2492.3,4.81257576]
[1747464439165,1.41877314,2492.6,2492.3,0.8003]
[1747464439705,1.41877314,2492.8,2492.3,4.81256745]
[1747464439876,5.43035131,2492.8,2492.4,3.52879807]
[1747464440074,4.01178888,2492.7,2492.4,3.52879807]
[1747464440278,5.43067655,2492.6,2492.4,3.52879807]
[1747464440492,5.43067655,2492.6,2492.5,7.543]
[1747464440976,1.41877314,2492.6,2492.5,7.543]
[1747464447012,5.4304118,2492.8,2492.5,7.543]
[1747464448091,1.41877314,2492.8,2492.5,7.543]
[1747464448443,1.41877314,2493.2,2492.7,4.0117142]
[1747464448595,4.01080187,2493.3,2492.8,1.34641384]
[1747464448803,4.01080187,2493.3,2492.8,1.30630324]
[1747464449115,1.41877314,2493.2,2492.8,1.30630324]
[1747464449399,6.10293436,2493.4,2492.8,1.30630324]
[1747464449400,7.52168941,2493.4,2492.8,5.35794231]
[1747464449603,4.0107489,2493.3,2492.9,0.53179422]
[1747464449774,4.0107489,2493.3,2493.0,7.538]
[1747464449966,4.0107489,2493.3,2493.1,17.323]
[1747464452224,3.51102158,2493.4,2493.1,17.323]
[1747464452225,3.51102158,2493.4,2493.1,18.1422]
[1747464452430,3.51102158,2493.4,2493.1,20.76339942]
[1747464452617,7.52162627,2493.4,2493.1,20.76339942]
[1747464454026,7.52167143,2493.4,2493.1,20.76339942]
[1747464454529,4.01083168,2493.3,2493.1,20.76339942]
[1747464454925,7.52168708,2493.4,2493.1,20.76339942]
[1747464455706,3.51102158,2493.4,2493.1,20.76339942]
[1747464455906,3.51102158,2493.4,2493.2,2.83013994]
[1747464456726,2.09224844,2493.4,2493.2,2.83013994]
[1747464456902,2.09224844,2493.4,2493.3,0.7536]
[1747464457102,2.09224844,2493.4,2493.3,4.7643488]
[1747464459001,2.09224844,2493.4,2493.3,4.8414488]
[1747464459235,2.09224844,2493.4,2493.3,7.74199838]
[1747464463356,2.09224844,2493.4,2493.3,7.78209892]
[1747464463733,2.09224844,2493.4,2493.3,7.74199838]
[1747464464370,2.09224844,2493.4,2493.3,8.12246976]
[1747464465865,2.09224844,2493.4,2493.3,9.72246976]
[1747464475478,2.09224844,2493.4,2493.3,17.25646976]
[1747464475785,2.09224844,2493.4,2493.3,24.78646976]
[1747464477668,2.09224844,2493.4,2493.3,32.78646976]
[1747464479566,2.09224844,2493.4,2493.3,33.26276785]
[1747464482083,2.09224844,2493.4,2493.3,18.19876785]
[1747464482303,2.09224844,2493.4,2493.3,32.78046976]
[1747464483289,2.09224844,2493.4,2493.3,17.72246976]
[1747464483491,2.09224844,2493.4,2493.3,32.77946976]
[1747464485395,2.09224844,2493.4,2493.3,33.41453388]
[1747464486995,2.09224844,2493.4,2493.3,18.35753388]
[1747464487170,2.09224844,2493.4,2493.3,25.88653388]
[1747464487375,2.09224844,2493.4,2493.3,33.41453388]
[1747464488894,2.09224844,2493.4,2493.3,15.45583388]
[1747464489697,2.09224844,2493.4,2493.3,7.92683388]
[1747464489875,2.09224844,2493.4,2493.3,22.98283388]
[1747464490272,2.09224844,2493.4,2493.3,7.92683388]
[1747464490477,2.85134844,2493.4,2493.3,22.98283388]
[1747464491089,2.85134844,2493.4,2493.3,12.5552843]
[1747464491292,2.85134844,2493.4,2493.3,20.0822843]
[1747464492814,2.85134844,2493.4,2493.3,19.44722018]
[1747464493614,2.85134844,2493.4,2493.3,4.39122018]
[1747464493795,2.85134844,2493.4,2493.3,7.91047138]
[1747464494700,2.85134844,2493.4,2493.3,7.53]
[1747464495416,2.85134844,2493.4,2493.1,17.323]
[1747464495417,4.0107488,2493.3,2493.1,17.323]
[1747464495715,4.8334488,2493.3,2493.2,7.53]
[1747464496013,4.01090967,2493.2,2493.1,17.323]
[1747464496215,4.01090967,2493.2,2493.1,24.853]
[1747464496396,5.88770158,2493.2,2493.1,24.853]
[1747464496796,7.30647472,2493.2,2493.1,24.853]
[1747464498828,7.30647472,2493.2,2492.3,4.4909915]
[1747464498829,0.7507,2493.0,2492.3,4.4909915]
[1747464498999,0.7507,2492.8,2492.5,17.315]
[1747464499344,2.16947314,2492.6,2492.5,17.315]
[1747464499730,2.16947314,2492.6,2492.5,20.24859915]
[1747464499910,1.41877314,2492.8,2492.5,24.26063525]
[1747464500117,0.7507,2492.9,2492.6,4.01173059]
[1747464500499,0.7507,2492.9,2492.7,4.01169069]
[1747464501419,1.41877314,2493.0,2492.8,4.01155327]
[1747464501621,1.41877314,2493.0,2492.9,7.531]
[1747464503032,5.43000458,2493.0,2492.9,7.531]
[1747464503328,1.41877314,2493.0,2492.9,7.531]
[1747464503712,1.41877314,2493.0,2492.9,7.532]
[1747464503907,6.04808293,2493.0,2492.9,7.532]
[1747464504132,4.00561483,2493.0,2492.9,7.532]
[1747464504337,8.01691205,2493.0,2492.9,7.532]
[1747464504515,8.82911205,2493.0,2492.9,7.532]
[1747464506915,7.41033891,2493.0,2492.9,7.532]
[1747464509034,15.41033891,2493.0,2492.9,7.532]
[1747464510043,7.41033891,2493.0,2492.9,7.532]
[1747464510208,6.79227036,2493.0,2492.9,7.532]
[1747464512636,6.24220458,2493.0,2492.9,7.532]
[1747464515020,2.23097314,2493.0,2492.9,7.532]
[1747464515221,6.24220458,2493.0,2492.9,7.532]
[1747464520766,4.01140547,2492.9,2492.5,17.315]
[1747464521067,1.41877314,2492.8,2492.6,7.529]
[1747464521468,5.43032826,2492.8,2492.6,7.529]
[1747464521876,5.43043547,2492.8,2492.6,7.529]
[1747464522152,4.8430142,2492.7,2492.6,7.529]
[1747464523250,0.8313,2492.7,2492.6,7.529]
[1747464525076,1.41877314,2492.8,2492.6,7.529]
[1747464526577,5.43034866,2492.8,2492.6,7.529]
[1747464527707,1.41877314,2492.8,2492.6,7.529]
[1747464529275,5.43041357,2492.8,2492.6,7.529]
[1747464529466,4.0117142,2492.7,2492.6,7.529]
[1747464530403,5.43041415,2492.8,2492.6,7.529]
[1747464530908,4.0117142,2492.7,2492.6,7.529]
[1747464531199,5.3618142,2492.7,2492.6,7.529]
[1747464538705,4.01187515,2492.6,2492.5,17.315]
[1747464538999,5.98064829,2492.6,2492.5,24.844]
[1747464542018,1.41877314,2492.6,2492.5,24.844]
[1747464542306,2.90282671,2493.4,2492.5,24.844]
[1747464542307,1.41877314,2492.8,2492.5,27.3284]
[1747464543187,4.01174936,2492.7,2492.5,24.844]
[1747464543392,5.43064829,2492.6,2492.5,24.844]
[1747464543815,1.41877314,2492.6,2492.5,24.844]
[1747464543969,4.01180574,2492.7,2492.5,24.844]
[1747464544171,1.41877314,2492.8,2492.6,0.8077]
[1747464545713,4.0117142,2492.7,2492.5,24.844]
[1747464545911,5.43064829,2492.6,2492.5,17.315]
[1747464546214,5.43064829,2492.6,2492.5,24.839]
[1747464547209,1.41877314,2492.6,2492.5,24.839]
[1747464547509,4.78476264,2492.8,2492.5,24.839]
[1747464547510,1.41877314,2492.8,2492.5,24.839]
[1747464547713,1.3231,2493.0,2492.6,0.7624]
[1747464547714,4.56125078,2493.0,2492.6,0.7624]
[1747464549530,5.42968206,2493.3,2492.7,4.01164391]
[1747464549705,12.01091061,2493.2,2492.7,4.01164391]
[1747464549908,1.41877314,2493.1,2492.7,4.01164391]
[1747464550113,1.41877314,2493.1,2492.8,0.47740439]
[1747464550513,12.01091061,2493.2,2492.9,0.7624]
[1747464550514,8.0,2493.2,2492.9,0.7624]
[1747464550700,8.0,2493.2,2493.0,7.524]
[1747464551687,2.09224844,2493.4,2493.0,11.53512238]
[1747464551892,2.09224844,2493.4,2493.2,0.7624]
[1747464552918,5.42952194,2493.3,2493.0,0.7524]
[1747464553240,1.41877314,2493.1,2492.7,12.28509884]
[1747464553408,1.41877314,2493.1,2492.8,7.524]
[1747464553639,1.41877314,2492.9,2492.5,21.11082232]
[1747464553928,1.41877314,2492.9,2492.6,17.15508223]
[1747464556121,0.55,2493.0,2492.6,17.15508223]
[1747464556312,4.56129114,2493.0,2492.6,17.15508223]
[1747464556829,4.56129114,2493.0,2492.6,15.044]
[1747464557044,4.01149367,2492.9,2492.6,15.044]
[1747464557338,5.43026681,2492.9,2492.6,15.044]
[1747464558152,5.43026681,2492.9,2492.5,18.0674]
[1747464558445,1.41877314,2492.9,2492.7,7.523]
[1747464558630,4.0114068,2492.9,2492.7,7.523]
[1747464559238,5.43017994,2492.9,2492.7,7.523]
[1747464559648,4.01155327,2492.8,2492.7,7.523]
[1747464559937,1.62707332,2492.8,2492.5,17.315]
[1747464560143,5.3407142,2492.7,2492.6,7.523]
[1747464560358,6.75948734,2492.7,2492.6,7.523]
[1747464569436,4.56187515,2492.6,2492.5,17.315]
[1747464569639,5.33554673,2492.6,2492.5,24.839]
[1747464569839,4.56187515,2492.6,2492.5,24.839]
[1747464571159,4.56187515,2492.6,2492.5,24.834]
[1747464572581,6.20948734,2492.7,2492.5,24.834]
[1747464572582,0.7909,2492.9,2492.5,24.834]
[1747464572779,1.41877314,2492.9,2492.5,24.834]
[1747464572942,1.41877314,2492.7,2492.5,24.834]
[1747464573144,5.43063039,2492.7,2492.5,24.834]
[1747464573763,4.56187515,2492.6,2492.5,17.315]
[1747464573943,4.56187515,2492.6,2492.5,24.834]
[1747464578072,4.56187515,2492.6,2492.5,7.519]
[1747464578274,0.55,2492.6,2492.5,7.519]
[1747464578876,4.56187515,2492.6,2492.5,7.519]
[1747464580176,4.01219707,2492.4,2492.3,17.323]
[1747464580367,1.41877314,2492.4,2492.3,24.842]
[1747464580680,5.43097021,2492.4,2492.3,24.842]
[1747464584464,5.98097021,2492.4,2492.3,24.842]
[1747464584665,15.75427983,2492.4,2492.3,24.842]
[1747464585386,23.27027983,2492.4,2492.3,24.842]
[1747464587290,19.25808276,2492.4,2491.6,0.7735]
[1747464587500,5.43195544,2491.8,2491.7,7.519]
[1747464587673,1.41877314,2491.8,2491.7,7.519]
[1747464587871,4.01309086,2491.9,2491.7,10.16814854]
[1747464591276,4.01309086,2491.9,2491.7,7.519]
[1747464592471,0.55,2491.9,2491.7,7.519]
[1747464593286,4.56303498,2491.9,2491.7,7.519]
[1747464595229,0.55,2491.9,2491.7,7.519]
[1747464595582,4.56308302,2491.9,2491.7,7.519]
[1747464596629,5.43193631,2491.8,2491.5,18.19898539]
[1747464596838,4.01333593,2491.7,2491.6,7.521]
[1747464597002,13.98210907,2491.7,2491.6,7.521]
[1747464601045,12.56348531,2491.6,2491.5,17.325]
[1747464601245,12.56348531,2491.6,2491.5,24.846]
[1747464601553,13.34298531,2491.6,2491.5,7.515]
[1747464601844,16.1615003,2491.6,2491.5,7.515]
[1747464602213,12.56380749,2491.4,2491.3,0.66666667]
[1747464602414,22.27708063,2491.4,2491.3,0.66666667]
[1747464602722,30.02964246,2491.4,2491.3,0.66666667]
[1747464603998,18.51464246,2491.4,2491.3,0.66666667]
[1747464604200,22.71736692,2491.4,2491.3,0.66666667]
[1747464604733,22.27708063,2491.4,2491.3,0.66666667]
[1747464606334,31.19692301,2491.4,2491.3,0.66666667]
[1747464607032,4.01540148,2490.5,2490.2,0.8186]
[1747464607337,5.43419234,2490.4,2490.3,7.516]
[1747464608039,5.98419234,2490.4,2490.3,7.516]
[1747464609137,1.96877314,2490.4,2490.3,7.516]
[1747464610424,5.98419234,2490.4,2490.3,7.516]
[1747464610608,1.96877314,2490.4,2490.3,7.516]
[1747464611242,5.98419234,2490.4,2490.3,7.516]
[1747464611438,15.78414589,2490.4,2490.3,7.516]
[1747464611638,16.57054589,2490.4,2490.3,7.516]
[1747464613443,4.5657417,2490.2,2490.1,24.849]
[1747464613747,5.98451484,2490.2,2490.1,24.849]
[1747464613945,21.50151484,2490.2,2490.1,24.849]
[1747464614147,24.3118613,2490.2,2490.1,24.849]
[1747464614361,16.7948613,2490.2,2490.1,24.849]
[1747464614516,24.3118613,2490.2,2490.1,24.849]
[1747464614843,16.7948613,2490.2,2490.1,24.849]
[1747464615044,24.3108613,2490.2,2490.1,24.849]
[1747464619218,24.3108613,2490.2,2490.1,17.331]
[1747464619520,8.55,2490.0,2489.9,7.52]
[1747464619741,4.01643504,2489.8,2489.5,0.8021]
[1747464619950,1.41877314,2489.7,2489.6,7.52]
[1747464620264,5.43532131,2489.7,2489.6,7.52]
[1747464620421,1.41877314,2489.7,2489.6,7.52]
[1747464620621,5.43543834,2489.7,2489.6,7.52]
[1747464621648,1.41877314,2489.7,2489.6,7.52]
[1747464628665,1.41877314,2490.2,2489.8,4.01631409]
[1747464628881,0.55,2490.1,2489.8,4.01631409]
[1747464629037,1.41877314,2490.0,2489.7,4.0164477]
[1747464629241,1.41877314,2490.0,2489.6,8.3414]
[1747464629553,1.41877314,2490.0,2489.6,0.8214]
[1747464629756,1.41877314,2489.8,2489.7,7.521]
[1747464630081,6.80535999,2489.8,2489.7,7.521]
[1747464630377,14.80535999,2489.8,2489.7,7.521]
[1747464631452,12.01687085,2489.5,2489.4,17.338]
[1747464631779,12.01687085,2489.5,2489.4,24.854]
[1747464631780,15.30028236,2489.5,2489.4,24.854]
[1747464631965,16.12048236,2489.5,2489.4,17.338]
[1747464632145,16.12048236,2489.5,2489.4,24.854]
[1747464634163,23.63648236,2489.5,2489.4,24.854]
[1747464634362,19.61961151,2489.5,2489.4,24.854]
[1747464635674,12.10361151,2489.5,2489.4,24.854]
[1747464638095,11.28341151,2489.5,2489.4,24.854]
[1747464639392,9.41877314,2489.5,2489.4,24.854]
[1747464639595,1.41877314,2489.9,2489.4,25.6754]
[1747464639786,1.41877314,2490.1,2489.7,0.8214]
[1747464639982,1.41877314,2490.1,2489.8,4.01629545]
[1747464640182,1.41877314,2490.1,2489.9,7.517]
[1747464640681,0.55,2490.0,2489.9,7.517]
[1747464640877,0.55,2489.8,2489.4,21.3550074]
[1747464641063,1.96877314,2489.8,2489.5,8.3384]
[1747464643464,1.96877314,2489.8,2489.5,12.35519234]
[1747464645190,1.96877314,2489.8,2489.5,8.3384]
[1747464645395,5.98516787,2489.8,2489.5,0.8214]
[1747464645593,3.36727411,2489.8,2489.6,7.517]
[1747464645800,7.38369762,2489.8,2489.6,7.517]
[1747464645963,3.36727411,2489.8,2489.6,7.517]
[1747464647387,1.96877314,2489.8,2489.6,7.517]
[1747464652400,5.35614817,2489.7,2489.6,7.517]
[1747464652607,4.01685804,2489.6,2489.4,17.338]
[1747464652807,13.98564399,2489.5,2489.4,17.338]
[1747464653004,13.98564399,2489.5,2489.4,24.855]
[1747464653207,15.86485419,2489.5,2489.4,24.855]
[1747464655075,15.86485419,2489.5,2489.4,17.338]
[1747464655274,15.86485419,2489.5,2489.4,24.855]
[1747464656597,15.86485419,2489.5,2489.4,17.338]
[1747464661012,8.55,2489.5,2489.4,17.338]
[1747464661313,8.0,2489.5,2489.4,17.338]
[1747464661481,8.47955609,2489.6,2489.4,17.338]
[1747464661900,8.47955609,2489.6,2489.5,0.7833]
[1747464663482,4.56687085,2489.5,2489.4,17.338]
[1747464663688,0.84795561,2489.5,2489.4,24.851]
[1747464663909,13.91508939,2489.6,2489.4,24.851]
[1747464664083,9.89832923,2489.6,2489.4,25.6805]
[1747464664283,8.47955609,2489.6,2489.4,25.6805]
[1747464666588,1.41877314,2489.8,2489.4,29.69743942]
[1747464666918,12.01624461,2489.9,2489.4,33.0689049]
[1747464667486,1.41877314,2489.8,2489.4,18.1675]
[1747464667702,4.01671863,2489.6,2489.5,7.513]
[1747464668723,5.43549177,2489.6,2489.4,18.1675]
[1747464668896,4.01687085,2489.5,2489.4,17.338]
[1747464669096,5.43559168,2489.6,2489.4,24.851]
[1747464669613,4.01687085,2489.5,2489.4,17.338]
[1747464669795,4.01687085,2489.5,2489.4,24.851]
[1747464670226,5.5121171,2489.5,2489.4,24.851]
[1747464670397,6.2659171,2489.5,2489.4,24.851]
[1747464670600,14.2659171,2489.5,2489.4,24.851]
[1747464671714,14.2659171,2489.5,2489.4,17.338]
[1747464671915,14.2659171,2489.5,2489.4,24.851]
[1747464672226,14.2659171,2489.5,2489.4,17.338]
[1747464673925,8.55,2489.4,2488.8,0.8295]
[1747464674126,8.55,2489.4,2489.2,7.513]
[1747464674127,12.01719358,2489.3,2489.2,7.513]
[1747464674307,13.43596672,2489.3,2489.2,7.513]
[1747464676746,4.01759829,2489.1,2488.8,0.8295]
[1747464676904,4.01759829,2489.1,2488.9,7.513]
[1747464678239,4.01767778,2489.0,2488.9,7.513]
[1747464678616,4.0178392,2488.9,2488.8,0.8295]
[1747464678921,4.0178392,2488.9,2488.8,7.513]
[1747464679120,4.56800064,2488.8,2488.7,17.345]
[1747464679328,4.56800064,2488.8,2488.7,24.858]
[1747464679943,5.98677378,2488.8,2488.7,24.859]
[1747464680241,13.98677378,2488.8,2488.7,24.859]
[1747464680799,13.98677378,2488.8,2488.7,17.345]
[1747464680800,21.49877378,2488.8,2488.7,17.345]
[1747464680995,25.18346054,2488.8,2488.7,24.859]
[1747464682329,25.18346054,2488.8,2488.7,17.345]
[1747464683334,8.55,2488.6,2488.4,7.514]
[1747464683532,1.96877314,2488.5,2488.4,7.514]
[1747464683727,8.55,2488.5,2488.4,7.514]
[1747464683917,9.96877314,2488.5,2488.4,7.514]
[1747464684853,13.91614451,2489.0,2488.5,4.80789293]
[1747464685155,9.41877314,2488.8,2488.5,0.7895]
[1747464685645,9.89832923,2489.0,2488.6,4.01823072]
[1747464685948,8.47955609,2489.0,2488.7,4.01807636]
[1747464686104,8.47955609,2489.0,2488.6,5.72740943]
[1747464687715,13.91602387,2489.0,2488.6,1.70917177]
[1747464687915,4.0179342,2488.9,2488.5,0.7895]
[1747464688938,5.43681191,2488.8,2488.6,7.515]
[1747464689848,5.43681191,2488.8,2488.5,0.7895]
[1747464690018,4.01816209,2488.7,2488.6,7.515]
[1747464691154,4.01816209,2488.7,2488.5,0.7895]
[1747464691454,4.01816209,2488.7,2488.6,7.515]
[1747464691657,5.43686099,2488.8,2488.6,7.515]
[1747464692322,13.43670304,2488.9,2488.6,7.515]
[1747464692523,13.43670304,2488.9,2488.7,0.7577]
[1747464692723,9.41877314,2488.9,2488.7,0.7577]
[1747464693244,13.43661694,2488.9,2488.7,0.7577]
[1747464693551,8.47955609,2489.0,2488.7,1.98681297]
[1747464693849,1.41877314,2489.3,2488.7,1.98681297]
[1747464693850,8.0,2489.2,2488.8,4.01791354]
[1747464694436,12.01747991,2489.2,2488.7,6.00489386]
[1747464694756,5.43640307,2489.1,2488.8,7.511]
[1747464694954,1.41877314,2488.9,2488.7,0.7577]
[1747464695166,1.41877314,2488.9,2488.8,7.511]
[1747464695653,5.43664646,2488.9,2488.8,7.511]
[1747464695950,5.98664646,2488.9,2488.8,7.511]
[1747464696154,1.96877314,2488.9,2488.8,7.511]
[1747464696576,0.55,2488.9,2488.8,7.511]
[1747464696867,13.43634632,2489.1,2488.8,7.511]
[1747464696868,9.41877314,2489.1,2488.8,7.511]
[1747464697071,1.41877314,2489.1,2488.8,11.52891608]
[1747464697277,1.41877314,2489.1,2488.8,7.511]
[1747464698758,1.41877314,2489.1,2488.9,7.511]
[1747464699133,12.01750943,2489.2,2488.9,7.511]
[1747464699357,8.0,2489.2,2488.9,11.52883436]
[1747464699770,8.0,2489.2,2489.0,0.7589]
[1747464699972,9.41877314,2489.3,2489.0,0.7589]
[1747464700271,16.92977314,2489.5,2489.1,4.01749212]
[1747464700473,16.92977314,2489.5,2489.0,0.7589]
[1747464700474,12.94666451,2489.5,2489.0,4.77648872]
[1747464701041,12.94666451,2489.5,2489.0,8.14191186]
[1747464701271,9.02955609,2489.6,2489.2,4.77618425]
[1747464701272,8.47955609,2489.6,2489.2,4.77618425]
[1747464701472,8.47955609,2489.6,2489.5,4.77577085]
[1747464701641,8.47955609,2489.6,2489.5,12.28677085]
[1747464701969,8.47955609,2489.6,2489.5,8.2699]
[1747464702369,8.47955609,2489.6,2489.5,13.5154571]
[1747464703492,8.0,2490.1,2489.5,9.49858625]
[1747464703786,5.43448466,2490.3,2489.7,4.01654817]
[1747464703951,4.01615837,2490.0,2489.8,17.347]
[1747464704148,5.97849184,2489.9,2489.8,17.347]
[1747464704351,13.97849184,2489.9,2489.8,24.857]
[1747464704741,13.1097187,2489.9,2489.8,24.857]
[1747464705082,21.58927479,2489.9,2489.8,7.51]
[1747464705376,12.56638685,2489.8,2489.7,7.51]
[1747464705579,4.0170461,2489.4,2489.1,18.1624]
[1747464705795,4.01720464,2489.3,2489.2,7.51]
[1747464705944,4.0168774,2489.5,2489.2,7.51]
[1747464705945,8.7588,2489.5,2489.2,7.51]
[1747464706284,4.01714708,2489.4,2489.2,7.51]
[1747464707184,5.43596672,2489.3,2489.2,7.51]
[1747464707364,5.43596672,2489.3,2489.1,17.347]
[1747464707701,5.43596672,2489.3,2489.2,7.51]
[1747464707880,13.43596672,2489.3,2489.2,7.51]
[1747464708082,12.56735497,2489.2,2489.1,17.347]
[1747464709099,21.79961106,2489.2,2489.1,17.347]
[1747464712574,21.79961106,2489.2,2488.3,4.01873088]
[1747464712575,4.01772997,2489.0,2488.4,17.347]
[1747464712766,1.41877314,2488.6,2488.5,7.51]
[1747464713167,5.43709669,2488.6,2488.5,7.51]
[1747464713466,5.43709669,2488.6,2488.4,17.347]
[1747464713467,4.56848503,2488.5,2488.4,17.347]
[1747464713667,4.56848503,2488.5,2488.4,24.858]
[1747464713963,0.55,2488.5,2488.4,24.858]
[1747464715678,12.56848503,2488.5,2488.4,24.858]
[1747464715879,15.16904468,2488.5,2488.4,17.347]
[1747464716078,15.16904468,2488.5,2488.4,24.858]
[1747464716406,12.56848503,2488.5,2488.4,24.858]
[1747464718401,8.0,2488.5,2488.4,24.858]
[1747464718712,0.55,2488.8,2488.5,4.80728907]
[1747464718867,10.08,2488.9,2488.7,4.01804376]
[1747464719212,10.08,2488.9,2488.7,4.01800362]
[1747464719370,10.08,2488.9,2488.8,0.88251127]
[1747464719572,10.08,2488.9,2488.8,4.90051191]
[1747464719780,10.08,2488.9,2488.8,5.68941191]
[1747464719976,10.08,2488.9,2488.4,17.347]
[1747464719977,18.08,2488.9,2488.4,17.347]
[1747464720176,0.55,2488.8,2488.5,7.512]
[1747464720405,23.5166823,2488.9,2488.5,7.512]
[1747464720578,18.08,2488.9,2488.5,7.512]
[1747464721106,10.08,2488.9,2488.8,4.01800064]
[1747464721277,10.08,2489.4,2488.9,4.01782553]
[1747464721473,4.01722081,2489.3,2489.0,8.3009]
[1747464722172,10.08,2489.4,2489.0,8.3009]
[1747464722379,10.08,2489.5,2489.2,0.8098]
[1747464722598,10.08,2489.5,2489.3,4.50386244]
[1747464722983,10.08,2489.5,2489.3,21.85386244]
[1747464724269,10.08,2489.5,2489.3,17.83674909]
[1747464725029,10.08,2489.5,2489.3,21.8538697]
[1747464725319,10.08,2489.5,2489.4,13.79339918]
[1747464725491,8.55,2489.9,2489.5,4.0167716]
[1747464725686,8.55,2489.9,2489.5,4.05693582]
[1747464726018,0.55,2489.9,2489.7,0.8098]
[1747464726519,4.01630027,2489.9,2489.4,10.58616697]
[1747464726723,4.01643487,2489.8,2489.5,7.51]
[1747464727186,4.01628952,2489.9,2489.5,7.51]
[1747464729618,0.55,2489.9,2489.5,7.51]
[1747464729818,0.55,2489.7,2489.6,7.509]
[1747464730129,4.56654817,2489.7,2489.6,7.509]
[1747464730319,4.01682266,2489.6,2489.3,17.35]
[1747464730504,4.01682266,2489.6,2489.4,7.509]
[1747464730824,4.01655514,2489.7,2489.4,7.509]
[1747464731224,8.0,2489.8,2489.4,10.47372715]
[1747464731380,10.08,2489.9,2489.5,4.78778894]
[1747464731583,8.0,2490.2,2489.8,4.0162735]
[1747464731809,12.01574865,2490.2,2489.9,8.28]
[1747464731994,12.01574865,2490.2,2490.0,7.509]
[1747464732190,1.3324,2490.0,2489.9,7.509]
[1747464732419,12.56612159,2490.0,2489.9,7.509]
[1747464733090,8.55,2490.0,2489.9,8.2741]
[1747464733490,8.55,2490.0,2489.9,7.509]
[1747464734813,8.55,2490.0,2489.7,0.7651]
[1747464735016,8.55,2490.0,2489.8,7.508]
[1747464735194,8.0,2490.0,2489.8,7.508]
[1747464735394,4.01598502,2490.1,2489.9,7.508]
[1747464735707,12.01598502,2490.1,2489.9,7.508]
[1747464736421,4.01606425,2490.0,2489.9,7.508]
[1747464736602,8.0,2490.1,2489.4,0.7651]
[1747464736603,4.01650761,2489.8,2489.4,0.7651]
[1747464736801,4.01662317,2489.7,2489.5,7.508]
[1747464740234,8.0,2489.8,2489.5,7.508]
[1747464740404,8.0,2489.9,2489.5,11.52480024]
[1747464740605,8.0,2489.9,2489.5,14.89050382]
[1747464740818,4.01614863,2490.0,2489.5,14.89050382]
[1747464741192,4.01622657,2489.9,2489.5,10.87370358]
[1747464742415,4.01643031,2489.8,2489.5,7.508]
[1747464743728,4.0166041,2489.7,2489.6,7.508]
[1747464744033,5.43568484,2489.8,2489.6,7.508]
[1747464744533,4.01654817,2489.7,2489.6,7.508]
[1747464745431,13.43564905,2489.8,2489.6,7.508]
[1747464748932,12.01596593,2490.1,2489.7,0.8035]
[1747464749146,4.01606578,2490.0,2489.7,0.8035]
[1747464749570,12.015914,2490.1,2489.7,0.8035]
[1747464750074,5.43525375,2490.0,2489.7,0.8035]
[1747464750368,4.0164567,2489.8,2489.6,7.508]
[1747464750542,4.01654817,2489.7,2489.5,0.8035]
[1747464750740,4.56654817,2489.7,2489.3,18.1535]
[1747464750957,4.56654817,2489.7,2489.6,7.508]
[1747464752127,0.55,2489.7,2489.6,7.508]
[1747464753066,8.0,2489.9,2489.6,7.508]
[1747464753226,8.0,2489.9,2489.6,11.52462641]
[1747464753431,20.94401807,2490.2,2489.7,4.84196908]
[1747464753640,0.55,2490.1,2489.7,4.84196908]
[1747464753844,4.56592118,2490.1,2489.7,0.8255]
[1747464755166,0.55,2490.1,2489.7,4.842005]
[1747464755625,22.09580928,2490.2,2489.7,6.63408201]
[1747464755830,10.08,2490.2,2489.9,4.01622555]
[1747464756148,1.41918883,2490.4,2490.1,0.8255]
[1747464756341,1.41918883,2490.4,2490.2,7.51]
[1747464756751,8.0,2490.3,2490.2,7.51]
[1747464756950,4.01587886,2490.2,2489.9,0.8255]
[1747464757142,1.41918883,2490.1,2490.0,7.51]
[1747464758568,1.41918883,2490.1,2489.8,17.343]
[1747464758569,13.4350918,2490.1,2489.8,17.343]
[1747464758743,5.43541438,2489.9,2489.8,17.343]
[1747464759070,1.41918883,2489.9,2489.8,24.852]
[1747464759266,4.01614727,2490.0,2489.8,24.852]
[1747464759570,0.55,2490.0,2489.8,24.852]
[1747464759738,14.64608696,2490.0,2489.8,24.852]
[1747464761671,4.01622555,2489.9,2489.8,17.343]
[1747464761837,4.01622555,2489.9,2489.8,24.852]
[1747464762373,16.25905444,2489.9,2489.8,24.852]
[1747464764468,13.36942555,2489.9,2489.8,24.852]
[1747464764871,13.34942555,2489.9,2489.8,24.852]
[1747464765672,23.42942555,2489.9,2489.8,24.852]
[1747464766776,18.08,2489.9,2489.8,24.852]
[1747464766941,10.08,2489.9,2489.8,24.852]
[1747464767142,10.06,2489.9,2489.8,24.852]
[1747464769361,10.06,2489.9,2489.8,31.43503685]
[1747464770271,10.06,2489.9,2489.8,27.41865]
[1747464772851,10.06,2489.9,2489.8,31.43503685]
[1747464773081,10.06,2489.9,2489.8,32.19563685]
[1747464776985,10.06,2489.9,2489.8,28.17925]
[1747464777355,10.06,2489.9,2489.8,27.41865]
[1747464779480,10.06,2489.9,2489.8,31.43503685]
[1747464780659,8.0,2490.3,2490.0,4.01596491]
[1747464780860,8.0,2490.3,2490.0,7.63717509]